[Event "Championnat du monde jeunes U12"]
[Date "2024.11.22"]
[White "Kim, Minwoo"]
[Black "To, Nam Long"]
[WhiteElo "1501"]
[BlackElo "1608"]
[Round "7.61"]
[Result "1/2-1/2"]
[TimeControl "5400+30"]

1. e4 {[%clk 1:30:20]} 1... d6 {[%clk 1:30:37]} 2. d4 {[%clk 1:29:55]} 2... Nf6
{[%clk 1:30:30]} 3. Nc3 {[%clk 1:28:58]} 3... e5 {[%clk 1:30:31]} 4. Nf3 {[%clk
1:28:43]} 4... Nbd7 {[%clk 1:30:30]} 5. Be3 {[%clk 1:28:25]} 5... Be7 {[%clk
1:30:31]} 6. h3 {[%clk 1:27:49]} 6... c6 {[%clk 1:29:12]} 7. g4 {[%clk 1:27:25]}
7... h6 {[%clk 1:23:55]} 8. Bd3 {[%clk 1:26:41]} 8... Nh7 {[%clk 1:20:55]} 9.
Qe2 {[%clk 1:12:14]} 9... Ng5 {[%clk 1:15:56]} 10. O-O-O {[%clk 1:11:26]} 10...
Nxf3 {[%clk 1:14:17]} 11. Qxf3 {[%clk 1:11:45]} 11... Bg5 {[%clk 1:14:28]} 12.
Kb1 {[%clk 0:59:55]} 12... Qf6 {[%clk 1:08:28]} 13. Qxf6 {[%clk 0:57:59]} 13...
Bxf6 {[%clk 1:08:50]} 14. d5 {[%clk 0:57:13]} 14... a6 {[%clk 1:06:26]} 15. Bc4
{[%clk 0:52:43]} 15... c5 {[%clk 1:06:07]} 16. h4 {[%clk 0:52:00]} 16... Nb6
{[%clk 1:05:39]} 17. Be2 {[%clk 0:52:20]} 17... Be7 {[%clk 1:03:28]} 18. f4
{[%clk 0:43:50]} 18... Nd7 {[%clk 1:00:29]} 19. g5 {[%clk 0:35:08]} 19... h5
{[%clk 0:58:58]} 20. f5 {[%clk 0:32:12]} 20... b5 {[%clk 0:57:18]} 21. a3 {[%clk
0:29:38]} 21... Bb7 {[%clk 0:55:51]} 22. Bf3 {[%clk 0:27:04]} 22... O-O-O {[%clk
0:54:20]} 23. Ne2 {[%clk 0:25:21]} 23... Rdf8 {[%clk 0:53:44]} 24. Ng3 {[%clk
0:23:38]} 24... g6 {[%clk 0:53:57]} 25. f6 {[%clk 0:23:53]} 25... Bd8 {[%clk
0:54:16]} 26. Rd3 {[%clk 0:23:33]} 26... c4 {[%clk 0:52:00]} 27. Rc3 {[%clk
0:23:26]} 27... Ba5 {[%clk 0:50:55]} 28. b4 {[%clk 0:23:39]} 28... Bb6 {[%clk
0:51:03]} 29. Ne2 {[%clk 0:20:29]} 29... Kb8 {[%clk 0:46:34]} 30. Bg2 {[%clk
0:17:53]} 30... Bc8 {[%clk 0:42:32]} 31. Bh3 {[%clk 0:13:46]} 31... Bxe3 {[%clk
0:41:53]} 32. Rxe3 {[%clk 0:14:08]} 32... Nb6 {[%clk 0:41:49]} 33. Nc3 {[%clk
0:13:58]} 33... Bxh3 {[%clk 0:40:26]} 34. Rexh3 {[%clk 0:12:47]} 34... Kb7
{[%clk 0:40:00]} 35. Kb2 {[%clk 0:11:35]} 35... Na4+ {[%clk 0:39:10]} 36. Nxa4
{[%clk 0:11:58]} 36... bxa4 {[%clk 0:39:32]} 37. Kc3 {[%clk 0:11:35]} 37... Rc8
{[%clk 0:39:28]} 38. Rb1 {[%clk 0:11:43]} 38... Kb6 {[%clk 0:39:23]} 39. Rhh1
{[%clk 0:09:41]} 39... Kb5 {[%clk 0:39:12]} 40. Rb2 {[%clk 0:08:39]} 40... Rb8
{[%clk 0:38:48]} 41. Rhb1 Rhc8 {[%clk 0:38:51]} 42. Ra2 {[%clk 0:07:36]} 42...
Rc7 {[%clk 0:38:15]} 43. Rab2 {[%clk 0:07:48]} 43... Rbb7 {[%clk 0:35:05]} 44.
Ra2 {[%clk 0:07:40]} 44... Rb6 {[%clk 0:31:32]} 45. Rab2 {[%clk 0:07:17]} 45...
Rb8 {[%clk 0:29:54]} 46. Ra2 {[%clk 0:07:40]} 46... Rbb7 {[%clk 0:30:20]} 47.
Rab2 {[%clk 0:08:06]} 47... Ra7 {[%clk 0:30:15]} 48. Ra2 {[%clk 0:08:31]}
1/2-1/2

[Variant "Standard"]
[Site "Europe Echecs"]

[Event "Championnat du monde jeunes U12"]
[Date "2024.11.22"]
[White "Italiani, Luca"]
[Black "Son, Juwon"]
[WhiteElo "1634"]
[BlackElo "1448"]
[Round "7.65"]
[Result "1/2-1/2"]
[TimeControl "5400+30"]

1. e4 {[%clk 1:30:59]} 1... c5 {[%clk 1:30:58]} 2. Nf3 {[%clk 1:31:24]} 2... Nc6
{[%clk 1:31:25]} 3. d4 {[%clk 1:31:46]} 3... cxd4 {[%clk 1:31:52]} 4. Nxd4
{[%clk 1:32:13]} 4... Nf6 {[%clk 1:32:16]} 5. Nc3 {[%clk 1:32:25]} 5... e5
{[%clk 1:32:41]} 6. Nb3 {[%clk 1:32:48]} 6... Bb4 {[%clk 1:33:04]} 7. Bd3 {[%clk
1:33:06]} 7... O-O {[%clk 1:30:24]} 8. O-O {[%clk 1:33:28]} 8... h6 {[%clk
1:28:37]} 9. a3 {[%clk 1:33:53]} 9... Bxc3 {[%clk 1:26:33]} 10. bxc3 {[%clk
1:34:09]} 10... Qe7 {[%clk 1:10:06]} 11. Qe2 {[%clk 1:33:20]} 11... Rd8 {[%clk
0:59:59]} 12. Bc4 {[%clk 1:31:12]} 12... d6 {[%clk 0:56:43]} 13. h3 {[%clk
1:30:42]} 13... Be6 {[%clk 0:53:27]} 14. Rd1 {[%clk 1:28:49]} 14... Rac8 {[%clk
0:51:02]} 15. Bxe6 {[%clk 1:27:17]} 15... Qxe6 {[%clk 0:49:27]} 16. Bb2 {[%clk
1:24:51]} 16... Ne7 {[%clk 0:44:38]} 17. f3 {[%clk 1:21:39]} 17... d5 {[%clk
0:35:31]} 18. Qe3 {[%clk 1:15:44]} 18... d4 {[%clk 0:29:04]} 19. cxd4 {[%clk
1:14:38]} 19... Rxc2 {[%clk 0:26:01]} 20. dxe5 {[%clk 1:07:02]} 20... Rxd1+
{[%clk 0:22:07]} 21. Rxd1 {[%clk 1:06:50]} 21... Rxb2 {[%clk 0:22:15]} 22. exf6
{[%clk 1:04:05]} 22... Rxb3 {[%clk 0:21:15]} 23. Qxb3 {[%clk 0:59:10]} 23...
Qxb3 {[%clk 0:21:18]} 24. Rd8+ {[%clk 0:58:50]} 24... Kh7 {[%clk 0:21:43]} 25.
fxe7 {[%clk 0:58:22]} 25... Qe3+ {[%clk 0:21:40]} 1/2-1/2

[Variant "Standard"]
[Site "Europe Echecs"]

[Event "Championnat du monde jeunes U12"]
[Date "2024.11.23"]
[White "Smirnov, Mark"]
[Black "Radzimski, Antoni"]
[WhiteElo "2300"]
[BlackElo "2188"]
[Round "8.1"]
[Result "1-0"]
[TimeControl "5400+30"]

1. e4 {[%clk 1:29:46]} 1... e5 {[%clk 1:30:49]} 2. Nf3 {[%clk 1:30:04]} 2... Nc6
{[%clk 1:31:13]} 3. Bb5 {[%clk 1:30:24]} 3... a6 {[%clk 1:31:39]} 4. Ba4 {[%clk
1:30:50]} 4... Nf6 {[%clk 1:32:04]} 5. O-O {[%clk 1:30:59]} 5... b5 {[%clk
1:32:31]} 6. Bb3 {[%clk 1:31:23]} 6... Bc5 {[%clk 1:32:57]} 7. a4 {[%clk
1:31:46]} 7... Rb8 {[%clk 1:33:22]} 8. c3 {[%clk 1:32:04]} 8... d6 {[%clk
1:33:45]} 9. d4 {[%clk 1:32:29]} 9... Bb6 {[%clk 1:34:09]} 10. a5 {[%clk
1:32:53]} 10... Ba7 {[%clk 1:34:35]} 11. Be3 {[%clk 1:33:16]} 11... O-O {[%clk
1:34:20]} 12. dxe5 {[%clk 1:31:35]} 12... dxe5 {[%clk 1:32:02]} 13. Qxd8 {[%clk
1:27:11]} 13... Rxd8 {[%clk 1:32:21]} 14. Bxa7 {[%clk 1:10:02]} 14... Nxa7
{[%clk 1:32:42]} 15. Nxe5 {[%clk 1:10:28]} 15... Be6 {[%clk 1:32:45]} 16. Bxe6
{[%clk 1:09:44]} 16... fxe6 {[%clk 1:32:08]} 17. f3 {[%clk 1:09:22]} 17... c5
{[%clk 1:22:42]} 18. Na3 {[%clk 1:02:07]} 18... Rd2 {[%clk 1:21:34]} 19. Rf2
{[%clk 1:01:46]} 19... Rbd8 {[%clk 1:20:26]} 20. Re1 {[%clk 1:00:52]} 20... R8d6
{[%clk 1:11:17]} 21. Nc2 {[%clk 0:52:32]} 21... Nd7 {[%clk 1:08:03]} 22. Rxd2
{[%clk 0:38:15]} 22... Rxd2 {[%clk 1:08:19]} 23. Nxd7 {[%clk 0:38:43]} 23...
Rxd7 {[%clk 1:04:05]} 24. b4 {[%clk 0:38:30]} 24... Rd3 {[%clk 0:53:39]} 25.
bxc5 {[%clk 0:37:59]} 25... Rxc3 {[%clk 0:54:02]} 26. Nb4 {[%clk 0:38:05]} 26...
Rxc5 {[%clk 0:51:56]} 27. Nxa6 {[%clk 0:38:27]} 27... Rc4 {[%clk 0:47:22]} 28.
Rd1 {[%clk 0:34:09]} 28... Nc6 {[%clk 0:43:00]} 29. Nc7 {[%clk 0:33:32]} 29...
Nxa5 {[%clk 0:36:20]} 30. Rd7 {[%clk 0:23:25]} 30... Rc6 {[%clk 0:29:19]} 31.
Nxb5 {[%clk 0:23:13]} 31... Rc1+ {[%clk 0:24:58]} 32. Kf2 {[%clk 0:23:40]} 32...
Rc2+ {[%clk 0:24:03]} 33. Kg3 {[%clk 0:23:33]} 33... Nc4 {[%clk 0:22:57]} 34.
Re7 {[%clk 0:19:37]} 34... e5 {[%clk 0:20:09]} 35. Rc7 {[%clk 0:14:01]} 35...
Ne3 {[%clk 0:20:28]} 36. Rxc2 {[%clk 0:14:08]} 36... Nxc2 {[%clk 0:20:52]} 37.
Nd6 {[%clk 0:14:22]} 37... Nd4 {[%clk 0:20:08]} 38. Kg4 {[%clk 0:12:27]} 38...
g6 {[%clk 0:18:38]} 39. f4 {[%clk 0:09:07]} 39... exf4 {[%clk 0:18:30]} 40. Kxf4
{[%clk 0:09:27]} 40... Nc6 {[%clk 0:18:50]} 41. e5 {[%clk 0:07:39]} 41... Kf8
{[%clk 0:18:08]} 42. Ke4 {[%clk 0:07:15]} 42... Ke7 {[%clk 0:17:36]} 43. Nb5
{[%clk 0:07:40]} 43... Nb8 {[%clk 0:12:12]} 44. Nd4 {[%clk 0:05:31]} 44... Nd7
{[%clk 0:12:05]} 45. h3 {[%clk 0:04:49]} 45... Nb6 {[%clk 0:11:44]} 46. Kf4
{[%clk 0:02:23]} 46... Nc4 {[%clk 0:09:40]} 47. Nf3 {[%clk 0:02:47]} 47... h6
{[%clk 0:09:00]} 48. Ke4 {[%clk 0:03:13]} 48... Ke6 {[%clk 0:08:56]} 49. Nd4+
{[%clk 0:03:39]} 49... Ke7 {[%clk 0:09:21]} 50. Ne2 {[%clk 0:02:38]} 50... Nd2+
{[%clk 0:06:01]} 51. Kd5 {[%clk 0:01:36]} 51... Nf1 {[%clk 0:05:12]} 52. Nf4
{[%clk 0:01:09]} 52... g5 {[%clk 0:05:35]} 53. Ng6+ {[%clk 0:01:36]} 53... Kf7
{[%clk 0:05:55]} 54. e6+ {[%clk 0:01:58]} 54... Kxg6 {[%clk 0:06:18]} 55. Kc6
{[%clk 0:02:23]} 55... Kf6 {[%clk 0:05:31]} 56. Kd7 {[%clk 0:02:49]} 56... Ne3
{[%clk 0:04:42]} 57. e7 {[%clk 0:03:13]} 1-0

[Variant "Standard"]
[Site "Europe Echecs"]

[Event "Championnat du monde jeunes U12"]
[Date "2024.11.23"]
[White "Liu, Patrick"]
[Black "Sahbudak, Baris Cinar"]
[WhiteElo "2192"]
[BlackElo "2264"]
[Round "8.3"]
[Result "1-0"]
[TimeControl "5400+30"]

1. e4 {[%clk 1:30:58]} 1... c5 {[%clk 1:30:43]} 2. Nf3 {[%clk 1:31:21]} 2... d6
{[%clk 1:30:36]} 3. d4 {[%clk 1:31:44]} 3... cxd4 {[%clk 1:30:52]} 4. Nxd4
{[%clk 1:32:09]} 4... Nf6 {[%clk 1:31:09]} 5. Nc3 {[%clk 1:32:31]} 5... a6
{[%clk 1:30:45]} 6. f3 {[%clk 1:31:34]} 6... e5 {[%clk 1:24:12]} 7. Nb3 {[%clk
1:32:02]} 7... Be6 {[%clk 1:23:00]} 8. Be3 {[%clk 1:32:25]} 8... h5 {[%clk
1:21:51]} 9. Qd2 {[%clk 1:31:05]} 9... Nbd7 {[%clk 1:21:27]} 10. Nd5 {[%clk
1:29:12]} 10... Bxd5 {[%clk 1:19:26]} 11. exd5 {[%clk 1:29:35]} 11... g6 {[%clk
1:17:10]} 12. O-O-O {[%clk 1:23:02]} 12... Bg7 {[%clk 1:10:28]} 13. Kb1 {[%clk
1:21:09]} 13... O-O {[%clk 0:57:38]} 14. h3 {[%clk 1:15:37]} 14... Qc7 {[%clk
0:42:30]} 15. Rc1 {[%clk 1:09:47]} 15... a5 {[%clk 0:35:01]} 16. c4 {[%clk
1:02:00]} 16... a4 {[%clk 0:31:20]} 17. Na1 {[%clk 1:02:18]} 17... Nc5 {[%clk
0:23:03]} 18. Be2 {[%clk 0:59:50]} 18... a3 {[%clk 0:18:40]} 19. b3 {[%clk
0:59:29]} 19... e4 {[%clk 0:17:59]} 20. f4 {[%clk 0:59:21]} 20... Nfd7 {[%clk
0:17:29]} 21. g4 {[%clk 0:51:01]} 21... h4 {[%clk 0:14:40]} 22. Rhe1 {[%clk
0:45:11]} 22... Rfe8 {[%clk 0:09:56]} 23. Bf1 {[%clk 0:42:53]} 23... Bb2 {[%clk
0:03:21]} 24. Rcd1 {[%clk 0:41:08]} 24... Qd8 {[%clk 0:02:12]} 25. Nc2 {[%clk
0:39:52]} 25... Bg7 {[%clk 0:01:02]} 26. Bd4 {[%clk 0:39:29]} 26... Nb6 {[%clk
0:00:55]} 27. Bxg7 {[%clk 0:39:00]} 27... Kxg7 {[%clk 0:01:21]} 28. Nd4 {[%clk
0:38:14]} 28... Ra6 {[%clk 0:00:48]} 29. Re3 {[%clk 0:37:07]} 29... Qf6 {[%clk
0:00:41]} 30. Qf2 {[%clk 0:36:02]} 30... Kf8 {[%clk 0:00:37]} 31. g5 {[%clk
0:35:17]} 31... Qh8 {[%clk 0:00:47]} 32. Qe1 {[%clk 0:34:17]} 32... Raa8 {[%clk
0:00:47]} 33. Qc3 {[%clk 0:33:11]} 33... Qg7 {[%clk 0:00:41]} 34. Nb5 {[%clk
0:30:29]} 34... Qxc3 {[%clk 0:00:32]} 35. Nxc3 {[%clk 0:30:27]} 35... Re7 {[%clk
0:00:39]} 36. Rde1 {[%clk 0:30:28]} 36... Rae8 {[%clk 0:00:32]} 37. Nb5 {[%clk
0:25:44]} 37... Nd3 {[%clk 0:00:33]} 38. Nxd6 {[%clk 0:25:22]} 38... Nxe1 {[%clk
0:00:49]} 39. Nxe8 {[%clk 0:25:46]} 39... Nf3 {[%clk 0:00:59]} 40. Nf6 {[%clk
0:24:47]} 40... Nd2+ {[%clk 0:01:13]} 41. Kc2 {[%clk 0:22:58]} 41... Nxf1 {[%clk
0:01:42]} 42. Re1 {[%clk 0:23:27]} 42... Ng3 {[%clk 0:01:56]} 43. c5 {[%clk
0:23:42]} 43... Rc7 {[%clk 0:01:30]} 44. b4 {[%clk 0:23:58]} 44... Na4 {[%clk
0:01:03]} 45. Re3 {[%clk 0:22:03]} 45... Rc8 {[%clk 0:00:35]} 46. Rxa3 {[%clk
0:21:22]} 46... Nb6 {[%clk 0:00:34]} 47. Rc3 {[%clk 0:21:31]} 47... Na8 {[%clk
0:00:35]} 48. d6 {[%clk 0:21:27]} 48... Ne2 {[%clk 0:00:36]} 49. Rc4 {[%clk
0:20:47]} 49... Nxf4 {[%clk 0:00:53]} 50. Rxe4 {[%clk 0:21:16]} 50... Ne6 {[%clk
0:01:22]} 51. Rxh4 {[%clk 0:21:34]} 51... Rd8 {[%clk 0:00:39]} 52. Rh8+ {[%clk
0:21:33]} 52... Kg7 {[%clk 0:01:05]} 53. Rh7+ {[%clk 0:21:57]} 53... Kf8 {[%clk
0:01:34]} 54. h4 {[%clk 0:21:51]} 54... Nd4+ {[%clk 0:00:39]} 55. Kc3 {[%clk
0:21:30]} 55... Ne6 {[%clk 0:00:50]} 56. b5 {[%clk 0:21:07]} 56... b6 {[%clk
0:00:34]} 57. c6 {[%clk 0:21:16]} 1-0

[Variant "Standard"]
[Site "Europe Echecs"]

[Event "Championnat du monde jeunes U12"]
[Date "2024.11.23"]
[White "Golis, Wiktor"]
[Black "Obidjonov, Oriyat"]
[WhiteElo "2343"]
[BlackElo "2074"]
[Round "8.4"]
[Result "1-0"]
[TimeControl "5400+30"]

1. e4 {[%clk 1:30:57]} 1... c5 {[%clk 1:30:58]} 2. Nf3 {[%clk 1:31:20]} 2... e6
{[%clk 1:31:17]} 3. d4 {[%clk 1:31:44]} 3... cxd4 {[%clk 1:31:45]} 4. Nxd4
{[%clk 1:32:07]} 4... Nc6 {[%clk 1:31:59]} 5. Nc3 {[%clk 1:32:08]} 5... Qc7
{[%clk 1:32:18]} 6. a3 {[%clk 1:31:05]} 6... Nf6 {[%clk 1:32:34]} 7. Be3 {[%clk
1:31:01]} 7... Be7 {[%clk 1:31:53]} 8. f4 {[%clk 1:31:03]} 8... d6 {[%clk
1:26:27]} 9. Qf3 {[%clk 1:31:00]} 9... a6 {[%clk 1:25:52]} 10. O-O-O {[%clk
1:27:10]} 10... O-O {[%clk 1:00:17]} 11. Nxc6 {[%clk 1:26:40]} 11... bxc6 {[%clk
0:59:31]} 12. g4 {[%clk 1:26:38]} 12... d5 {[%clk 0:59:38]} 13. g5 {[%clk
1:26:33]} 13... dxe4 {[%clk 0:57:10]} 14. Nxe4 {[%clk 1:26:56]} 14... Nd5 {[%clk
0:57:31]} 15. Bd3 {[%clk 1:19:25]} 15... Rd8 {[%clk 0:42:29]} 16. Rhg1 {[%clk
1:05:54]} 16... Rb8 {[%clk 0:37:16]} 17. c4 {[%clk 0:56:30]} 17... Nxe3 {[%clk
0:32:20]} 18. Qxe3 {[%clk 0:56:59]} 18... Qb7 {[%clk 0:32:35]} 19. b4 {[%clk
0:23:56]} 19... a5 {[%clk 0:20:07]} 20. Nf6+ {[%clk 0:18:02]} 20... Kf8 {[%clk
0:20:20]} 21. Nxh7+ {[%clk 0:17:00]} 21... Ke8 {[%clk 0:20:44]} 22. Nf6+ {[%clk
0:10:19]} 22... gxf6 {[%clk 0:21:05]} 23. gxf6 {[%clk 0:10:48]} 23... Bd6 {[%clk
0:17:50]} 24. Rg8+ {[%clk 0:07:11]} 24... Kd7 {[%clk 0:18:10]} 25. Rxd8+ {[%clk
0:07:17]} 25... Kxd8 {[%clk 0:18:35]} 26. Be4 {[%clk 0:07:31]} 26... Bd7 {[%clk
0:12:03]} 27. Rxd6 {[%clk 0:07:28]} 27... Kc8 {[%clk 0:12:24]} 28. Qc5 {[%clk
0:06:32]} 28... axb4 {[%clk 0:12:45]} 29. Bxc6 {[%clk 0:06:00]} 29... Bxc6
{[%clk 0:13:11]} 30. Rxc6+ {[%clk 0:06:25]} 30... Kd7 {[%clk 0:13:38]} 31. Rd6+
{[%clk 0:03:50]} 31... Ke8 {[%clk 0:14:02]} 32. Qh5 {[%clk 0:03:54]} 32... Qh1+
{[%clk 0:13:20]} 33. Rd1 {[%clk 0:04:19]} 1-0

[Variant "Standard"]
[Site "Europe Echecs"]

[Event "Championnat du monde jeunes U12"]
[Date "2024.11.23"]
[White "Aansh Nandan Nerurkar"]
[Black "Karthi, Jashith"]
[WhiteElo "2247"]
[BlackElo "2073"]
[Round "8.5"]
[Result "1-0"]
[TimeControl "5400+30"]

1. e4 {[%clk 1:30:52]} 1... c5 {[%clk 1:31:00]} 2. Nf3 {[%clk 1:29:52]} 2... e6
{[%clk 1:31:23]} 3. g3 {[%clk 1:30:18]} 3... Nc6 {[%clk 1:31:47]} 4. Bg2 {[%clk
1:30:39]} 4... Nf6 {[%clk 1:32:07]} 5. Qe2 {[%clk 1:31:01]} 5... e5 {[%clk
1:32:01]} 6. O-O {[%clk 1:30:32]} 6... Be7 {[%clk 1:32:04]} 7. c3 {[%clk
1:30:32]} 7... O-O {[%clk 1:32:12]} 8. Na3 {[%clk 1:30:02]} 8... d6 {[%clk
1:31:58]} 9. d3 {[%clk 1:30:19]} 9... Re8 {[%clk 1:31:35]} 10. Nc4 {[%clk
1:30:10]} 10... h6 {[%clk 1:31:05]} 11. Ne3 {[%clk 1:29:33]} 11... Bf8 {[%clk
1:31:22]} 12. Nh4 {[%clk 1:28:32]} 12... b5 {[%clk 1:24:27]} 13. Bd2 {[%clk
1:26:37]} 13... Bb7 {[%clk 1:20:07]} 14. Rad1 {[%clk 1:21:27]} 14... a5 {[%clk
1:14:14]} 15. Ng4 {[%clk 1:18:23]} 15... Nxg4 {[%clk 0:57:49]} 16. Qxg4 {[%clk
1:18:44]} 16... Bc8 {[%clk 0:56:05]} 17. Qf3 {[%clk 1:15:37]} 17... g6 {[%clk
0:45:12]} 18. Be3 {[%clk 1:12:01]} 18... Bg7 {[%clk 0:41:15]} 19. Qe2 {[%clk
1:10:27]} 19... b4 {[%clk 0:39:46]} 20. Nf3 {[%clk 1:09:15]} 20... Be6 {[%clk
0:34:17]} 21. c4 {[%clk 1:08:35]} 21... Bg4 {[%clk 0:34:16]} 22. h3 {[%clk
1:08:50]} 22... Bxf3 23. Bxf3 {[%clk 1:09:01]} 23... Qe7 {[%clk 0:30:36]} 24.
Qd2 {[%clk 1:08:21]} 24... Kh7 {[%clk 0:29:41]} 25. Kg2 {[%clk 1:08:27]} 25...
Nd8 {[%clk 0:29:54]} 26. h4 {[%clk 1:07:17]} 26... h5 {[%clk 0:29:15]} 27. Rh1
{[%clk 1:06:59]} 27... Rh8 {[%clk 0:25:03]} 28. g4 {[%clk 1:06:08]} 28... Kg8
{[%clk 0:25:26]} 29. gxh5 {[%clk 1:06:08]} 29... gxh5 {[%clk 0:25:39]} 30. Qe2
{[%clk 0:55:51]} 30... Ne6 {[%clk 0:25:55]} 31. Bxh5 {[%clk 0:56:06]} 31... Kf8
{[%clk 0:25:49]} 32. Qf3 {[%clk 0:54:17]} 32... Bf6 {[%clk 0:21:14]} 33. Bg4
{[%clk 0:52:14]} 33... Bxh4 {[%clk 0:18:34]} 34. Rdg1 {[%clk 0:50:45]} 34... Bf6
{[%clk 0:10:48]} 35. Kf1 {[%clk 0:40:23]} 35... Rxh1 {[%clk 0:09:16]} 36. Qxh1
{[%clk 0:40:05]} 36... Qd7 {[%clk 0:07:55]} 37. Qf3 {[%clk 0:29:13]} 37... Ke7
{[%clk 0:08:10]} 38. Rh1 {[%clk 0:29:40]} 38... Rg8 {[%clk 0:07:13]} 39. Rh6
{[%clk 0:29:55]} 39... Rg6 {[%clk 0:07:17]} 40. Rxg6 {[%clk 0:29:53]} 40... fxg6
{[%clk 0:07:46]} 41. Qh3 {[%clk 0:30:15]} 41... Bg7 {[%clk 0:04:28]} 42. Qh7
{[%clk 0:30:39]} 42... Kf6 {[%clk 0:04:40]} 43. Qg8 {[%clk 0:29:55]} 43... Qf7
{[%clk 0:04:38]} 44. Qa8 {[%clk 0:26:44]} 44... Qc7 {[%clk 0:04:20]} 45. Bxe6
{[%clk 0:25:38]} 45... Kxe6 {[%clk 0:04:43]} 46. Bg5 {[%clk 0:26:02]} 46... Kf7
{[%clk 0:04:25]} 47. Qd5+ {[%clk 0:26:26]} 47... Kf8 {[%clk 0:03:31]} 48. Qe6
{[%clk 0:26:53]} 48... a4 {[%clk 0:03:38]} 49. Qxg6 {[%clk 0:26:48]} 49... Qd7
{[%clk 0:03:55]} 50. Ke1 {[%clk 0:25:13]} 50... b3 {[%clk 0:03:20]} 51. axb3
{[%clk 0:24:05]} 51... axb3 {[%clk 0:03:46]} 52. Kd2 {[%clk 0:23:52]} 52... Qc7
{[%clk 0:04:07]} 53. Qe6 {[%clk 0:23:35]} 53... Qa5+ {[%clk 0:04:11]} 54. Ke2
{[%clk 0:24:03]} 54... Qc7 {[%clk 0:04:31]} 55. Ke3 {[%clk 0:24:23]} 55... Qa7
{[%clk 0:04:00]} 56. Ke2 {[%clk 0:22:40]} 56... Qc7 {[%clk 0:04:24]} 57. Kf1
{[%clk 0:23:07]} 57... Qa7 {[%clk 0:04:37]} 58. Kg2 {[%clk 0:23:33]} 58... Qc7
{[%clk 0:05:03]} 59. Kg3 {[%clk 0:19:37]} 59... Qa7 {[%clk 0:04:39]} 60. Kg2
{[%clk 0:18:30]} 60... Qc7 {[%clk 0:05:05]} 61. f3 {[%clk 0:15:33]} 61... Qa7
{[%clk 0:05:22]} 62. Qxd6+ {[%clk 0:15:56]} 62... Kg8 {[%clk 0:05:45]} 63. Bd2
{[%clk 0:16:13]} 63... Qa1 {[%clk 0:05:59]} 64. Bc3 {[%clk 0:16:41]} 64... Qd1
{[%clk 0:06:14]} 65. Qxc5 {[%clk 0:17:06]} 65... Qc2+ {[%clk 0:06:17]} 66. Kg3
{[%clk 0:17:07]} 66... Qd1 {[%clk 0:06:05]} 67. Qc8+ {[%clk 0:15:43]} 67... Kh7
{[%clk 0:06:28]} 68. Qh3+ {[%clk 0:15:35]} 68... Kg8 {[%clk 0:06:50]} 69. Qe6+
{[%clk 0:13:57]} 69... Kh7 {[%clk 0:07:06]} 70. Qh3+ {[%clk 0:13:18]} 70... Kg8
{[%clk 0:07:35]} 71. Qg2 {[%clk 0:12:22]} 71... Qxd3 {[%clk 0:07:47]} 72. Qd2
{[%clk 0:12:41]} 72... Qf1 {[%clk 0:07:43]} 73. Kg4 {[%clk 0:12:47]} 73... Qg1+
{[%clk 0:07:50]} 74. Kf5 {[%clk 0:13:04]} 74... Qg3 {[%clk 0:08:09]} 75. Qd5+
{[%clk 0:12:44]} 75... Kh7 {[%clk 0:08:28]} 76. Ke6 {[%clk 0:12:48]} 76... Qh3+
{[%clk 0:08:10]} 77. Ke7 {[%clk 0:12:30]} 77... Qh4+ {[%clk 0:05:36]} 78. Kd7
{[%clk 0:12:43]} 78... Qh3+ {[%clk 0:05:54]} 79. Kc7 {[%clk 0:12:55]} 79... Qxf3
{[%clk 0:06:15]} 80. c5 {[%clk 0:13:20]} 80... Qf6 {[%clk 0:02:59]} 81. c6
{[%clk 0:13:44]} 81... Qe7+ {[%clk 0:03:24]} 82. Kb6 {[%clk 0:14:11]} 82... Qf6
{[%clk 0:03:40]} 83. Kb7 {[%clk 0:14:36]} 83... Bf8 {[%clk 0:03:43]} 84. c7
{[%clk 0:15:02]} 84... Qe7 {[%clk 0:04:11]} 85. Qxe5 {[%clk 0:15:24]} 85... Qh4
{[%clk 0:03:47]} 86. Qh8+ {[%clk 0:15:49]} 1-0

[Variant "Standard"]
[Site "Europe Echecs"]

[Event "Championnat du monde jeunes U12"]
[Date "2024.11.23"]
[White "Torres Rebolledo, Alvaro"]
[Black "Wijerathna, Vinuka Dihain"]
[WhiteElo "2216"]
[BlackElo "2004"]
[Round "8.6"]
[Result "0-1"]
[TimeControl "5400+30"]

1. e4 {[%clk 1:30:06]} 1... e5 {[%clk 1:30:19]} 2. Nf3 {[%clk 1:30:29]} 2... Nc6
{[%clk 1:30:20]} 3. d4 {[%clk 1:30:54]} 3... exd4 {[%clk 1:30:42]} 4. Bc4 {[%clk
1:31:18]} 4... Nf6 {[%clk 1:29:36]} 5. e5 {[%clk 1:31:38]} 5... d5 {[%clk
1:29:58]} 6. Bb5 {[%clk 1:32:02]} 6... Ne4 {[%clk 1:30:13]} 7. Nxd4 {[%clk
1:32:21]} 7... Bd7 {[%clk 1:27:35]} 8. Bxc6 {[%clk 1:32:42]} 8... bxc6 {[%clk
1:28:00]} 9. O-O {[%clk 1:33:02]} 9... Be7 {[%clk 1:26:23]} 10. f3 {[%clk
1:21:53]} 10... Nc5 {[%clk 1:26:11]} 11. f4 {[%clk 1:20:23]} 11... f5 {[%clk
1:11:15]} 12. b4 {[%clk 1:13:11]} 12... Ne6 {[%clk 1:10:46]} 13. Nxf5 {[%clk
1:10:53]} 13... Bxb4 {[%clk 1:11:09]} 14. Ng3 {[%clk 1:06:26]} 14... O-O {[%clk
1:09:22]} 15. f5 {[%clk 1:04:04]} 15... Bc5+ {[%clk 1:07:03]} 16. Kh1 {[%clk
1:04:16]} 16... Ng5 {[%clk 0:58:19]} 17. e6 {[%clk 0:46:55]} 17... Be8 {[%clk
0:52:07]} 18. Bb2 {[%clk 0:39:30]} 18... Rb8 {[%clk 0:43:53]} 19. Be5 {[%clk
0:38:17]} 19... Bd6 {[%clk 0:39:40]} 20. Bxd6 {[%clk 0:37:03]} 20... Qxd6 {[%clk
0:39:16]} 21. Nd2 {[%clk 0:34:16]} 21... c5 {[%clk 0:35:27]} 22. Qg4 {[%clk
0:30:01]} 22... h6 {[%clk 0:35:30]} 23. Rab1 {[%clk 0:27:57]} 23... Rb6 {[%clk
0:30:50]} 24. Rxb6 {[%clk 0:26:40]} 24... cxb6 {[%clk 0:30:07]} 25. Re1 {[%clk
0:23:24]} 25... Qe7 {[%clk 0:28:15]} 26. c4 {[%clk 0:20:09]} 26... Bc6 {[%clk
0:22:39]} 27. Nh5 {[%clk 0:18:38]} 27... g6 {[%clk 0:14:39]} 28. Nf4 {[%clk
0:14:49]} 28... gxf5 {[%clk 0:13:51]} 29. Qg3 {[%clk 0:14:49]} 29... Kh7 {[%clk
0:10:39]} 30. h4 {[%clk 0:13:44]} 30... dxc4 {[%clk 0:06:43]} 31. hxg5 {[%clk
0:14:01]} 31... hxg5 {[%clk 0:07:05]} 32. Qh3+ {[%clk 0:13:40]} 32... Kg7 {[%clk
0:07:26]} 33. Nh5+ {[%clk 0:11:16]} 33... Kg8 {[%clk 0:07:03]} 34. Nxc4 {[%clk
0:10:00]} 34... g4 {[%clk 0:04:47]} 35. Qe3 {[%clk 0:08:48]} 35... Bd5 {[%clk
0:04:00]} 36. Nd6 {[%clk 0:07:29]} 36... f4 {[%clk 0:02:31]} 37. Qe5 {[%clk
0:04:52]} 37... f3 {[%clk 0:01:23]} 38. Nf5 {[%clk 0:04:35]} 38... Rxf5 {[%clk
0:01:31]} 39. Qxf5 {[%clk 0:03:00]} 39... Qh4+ {[%clk 0:01:53]} 40. Kg1 {[%clk
0:03:25]} 40... Qxe1+ {[%clk 0:02:18]} 41. Kh2 {[%clk 0:03:51]} 41... Qh4+
{[%clk 0:02:20]} 42. Kg1 {[%clk 0:04:13]} 42... f2+ {[%clk 0:02:24]} 43. Kf1
{[%clk 0:04:14]} 43... Bc4+ {[%clk 0:02:53]} 0-1

[Variant "Standard"]
[Site "Europe Echecs"]